bitfinex/quotes_ETHUSD_20220119
["timestamp","ask_amount","ask_price","bid_price","bid_amount"]
[1642607328968,0.12990527,3120.2,3119.7,0.00113684]
[1642607330474,0.12990527,3120.2,3119.5,0.00227369]
[1642607330973,0.12990527,3120.2,3119.9,1.24187526]
[1642607331173,0.12990527,3120.2,3119.5,0.00227369]
[1642607331573,0.00170527,3120.2,3119.5,0.00227369]
[1642607331777,0.42990527,3120.2,3119.5,0.00227369]
[1642607332027,0.30170527,3120.2,3119.5,0.00227369]
[1642607332216,0.42990527,3120.2,3119.5,1.5081234]
[1642607332421,0.42990527,3120.2,3119.5,0.00227369]
[1642607332620,0.42990527,3120.2,3119.6,0.00170527]
[1642607332821,0.42990527,3120.2,3119.5,0.00227369]
[1642607334127,0.42990527,3120.2,3119.5,1.53961528]
[1642607334524,0.42990527,3120.2,3119.6,0.00170527]
[1642607336375,1.26461673,3119.9,3119.6,0.00170527]
[1642607336576,2.57941673,3119.9,3119.6,0.00170527]
[1642607336774,0.1282,3119.8,3119.5,0.00227369]
[1642607336978,0.1282,3119.8,3119.1,0.00454738]
[1642607337374,1.14189432,3119.6,3119.1,0.00454738]
[1642607337578,2.63517818,3119.4,3119.1,0.00454738]
[1642607337774,0.4282,3119.3,3119.1,0.00454738]
[1642607337973,2.63517818,3119.4,3119.1,0.00454738]
[1642607338190,0.3,3119.3,3118.6,0.0073895]
[1642607338375,0.4282,3119.3,3118.6,0.0073895]
[1642607338577,0.4282,3119.3,3118.7,0.13628051]
[1642607338578,0.80163,3119.3,3118.7,0.13628051]
[1642607338976,0.80163,3119.3,3118.8,0.00625265]
[1642607339177,0.80163,3119.3,3118.9,1.44879585]
[1642607339376,0.80163,3119.3,3118.9,1.31251534]
[1642607339638,0.80163,3119.3,3119.0,0.00511581]
[1642607339933,0.80163,3119.3,3118.7,0.00682108]
[1642607340135,0.92983,3119.3,3118.8,0.13628708]
[1642607340335,1.22983,3119.3,3118.7,0.00682108]
[1642607340634,1.22983,3119.3,3118.6,0.0073895]
[1642607340635,1.86813,3119.3,3118.6,0.0073895]
[1642607340836,1.86813,3119.3,3118.7,0.13629247]
[1642607340837,1.52477127,3119.0,3118.7,0.13629247]
[1642607341034,1.82477127,3119.0,3118.7,0.13629247]
[1642607341233,1.82477127,3119.0,3118.8,0.00625265]
[1642607341634,0.3,3119.0,3118.8,0.00625265]
[1642607341937,0.3,3119.0,3118.4,0.00852635]
[1642607342139,0.92983,3119.3,3118.5,0.1362922]
[1642607342335,1.22983,3119.3,3118.5,0.1362922]
[1642607342535,1.22983,3119.3,3118.6,0.0073895]
[1642607342536,1.47462632,3118.9,3118.6,0.0073895]
[1642607342734,1.47462632,3118.9,3118.7,0.1362922]
[1642607342935,1.77462632,3118.9,3118.7,0.1362922]
[1642607343139,0.3,3118.9,3118.8,0.00625265]
[1642607343570,1.10166,3119.0,3118.8,0.00625265]
[1642607343768,1.10166,3119.0,3118.4,0.00852635]
[1642607343969,1.10166,3119.0,3118.5,0.13629553]
[1642607344272,1.28972064,3118.9,3118.6,0.0073895]
[1642607344470,1.41792064,3118.9,3118.6,0.0073895]
[1642607344772,0.8017659,3118.6,3118.1,0.01023162]
[1642607344971,0.3,3118.5,3118.2,0.13630561]
[1642607345270,0.3,3118.5,3118.3,0.00909477]
[1642607345476,6.4782,3118.5,3118.3,0.00909477]
[1642607345773,6.4782,3118.5,3117.5,2.5377053]
[1642607345774,7.2801,3118.5,3118.1,0.01023162]
[1642607345972,6.05,3118.4,3118.0,0.96023162]
[1642607346173,0.1282,3118.3,3118.1,0.13632707]
[1642607346373,0.1282,3118.3,3117.4,0.01603892]
[1642607346374,6.05,3118.0,3117.4,0.01603892]
[1642607346574,8.61725926,3117.5,3117.4,0.01603892]
[1642607346775,0.01225011,3117.5,3117.4,0.01603892]
[1642607347016,0.1282,3117.9,3117.4,0.01603892]
[1642607347220,0.00113685,3118.3,3117.4,0.01603892]
[1642607347425,0.00113685,3118.3,3117.5,0.46141054]
[1642607347817,0.00113685,3118.3,3118.2,2.63442174]
[1642607348016,5.50113685,3118.3,3118.2,2.53442174]
[1642607348818,0.30113685,3118.3,3118.2,2.53442174]
[1642607349018,0.00113685,3118.3,3118.2,2.53442174]
[1642607349218,0.30113685,3118.3,3118.2,2.53442174]
[1642607349418,0.30113685,3118.3,3118.2,2.48442174]
[1642607349620,0.00113685,3118.3,3118.2,2.48442174]
[1642607350423,0.00113685,3118.3,3118.2,2.94242174]
[1642607352081,0.00113685,3118.3,3118.2,0.458]
[1642607352281,0.00113685,3118.3,3117.6,1.6150555]
[1642607352488,0.1282,3118.2,3117.6,0.00284212]
[1642607352688,0.00113685,3118.3,3117.5,0.458]
[1642607352689,0.00113685,3118.3,3117.7,0.00227369]
[1642607352885,0.00113685,3118.3,3117.6,0.00284212]
[1642607353087,3.36935472,3118.2,3117.6,0.00284212]
[1642607353287,3.36935472,3118.2,3117.6,1.4286868]
[1642607353288,1.7320162,3118.2,3117.6,1.4286868]
[1642607353491,0.1282,3118.1,3117.6,0.00284212]
[1642607353687,0.1282,3118.1,3117.7,0.00227369]
[1642607354288,0.8019736,3118.0,3117.7,0.00227369]
[1642607354517,1.10195,3118.2,3117.7,0.00227369]
[1642607354518,0.1282,3118.2,3117.7,0.00227369]
[1642607354723,0.1282,3118.2,3117.7,1.39492198]
[1642607355123,0.1282,3118.2,3117.8,0.00170527]
[1642607356022,1.23012,3118.2,3117.8,0.00170527]
[1642607356221,1.10192,3118.2,3117.8,0.00170527]
[1642607357027,5.33731426,3117.9,3117.8,0.00170527]
[1642607357227,6.23661426,3117.9,3117.8,0.00170527]
[1642607357428,6.53661426,3117.9,3117.8,0.00170527]
[1642607360375,5.2211,3117.9,3117.8,0.00170527]
[1642607360571,4.45,3117.9,3117.8,0.00170527]
[1642607360771,4.5782,3117.9,3117.8,0.00170527]
[1642607361173,4.5782,3117.9,3117.4,0.01603892]
[1642607361174,6.05,3117.8,3117.4,0.01603892]
[1642607361377,6.05,3117.8,3117.5,0.00170527]
[1642607361378,6.980428,3117.8,3117.5,0.00170527]
[1642607361572,0.3,3117.7,3117.5,0.00170527]
[1642607361773,6.1783,3117.6,3117.5,0.00170527]
[1642607362025,7.5342546,3117.6,3117.5,0.00170527]
[1642607362422,7.5342546,3117.6,3117.4,4.419e-05]
[1642607362423,6.05,3117.5,3117.4,4.419e-05]
[1642607362617,6.4783,3117.5,3117.4,4.419e-05]
[1642607363025,6.05,3117.4,3116.3,0.05005]
[1642607363221,0.8023193,3117.2,3116.3,0.05005]
[1642607363422,1.2191951,3117.0,3116.4,0.00625266]
[1642607364022,1.5191951,3117.0,3116.4,0.00625266]
[1642607364221,6.8522006,3116.9,3116.3,0.00630266]
[1642607364429,7.9669243,3116.9,3116.3,0.00630266]
[1642607364622,0.3022737,3116.8,3116.4,1.10453146]
[1642607365024,0.00170527,3116.7,3116.3,0.00630266]
[1642607365424,0.3,3116.8,3116.3,0.00630266]
[1642607365425,0.00113685,3116.6,3116.3,0.00630266]
[1642607365628,0.80344915,3116.6,3116.3,0.00630266]
[1642607365869,1.1023123,3116.6,3116.3,0.00630266]
[1642607366069,0.3,3116.6,3116.3,0.00630266]
[1642607366269,0.3,3116.6,3116.4,0.13638144]
[1642607366468,0.30170527,3116.7,3116.4,0.13638144]
[1642607366671,0.00170527,3116.7,3116.4,0.13638144]
[1642607366878,0.00113685,3116.6,3116.4,0.13638144]
[1642607367275,0.1305737,3116.8,3116.4,0.13638144]
[1642607367475,0.0022737,3116.8,3116.4,0.13638144]
[1642607367676,0.00170527,3116.7,3116.4,0.13638144]
[1642607368075,0.00113685,3116.6,3116.4,0.13638144]
[1642607368278,0.80342805,3116.6,3116.4,0.13638144]
[1642607368476,1.1022912,3116.6,3116.4,0.13638144]
[1642607369720,7.14676864,3116.5,3116.4,0.13638144]
[1642607370322,6.05,3116.5,3116.4,0.13638144]
[1642607371322,7.59214896,3116.5,3116.4,0.13638144]
[1642607371728,7.59214896,3116.5,3116.3,0.00630266]
[1642607371926,9.32515176,3116.5,3116.3,0.00630266]
[1642607372124,12.45259304,3116.5,3116.3,0.00630266]
[1642607372323,9.81395176,3116.5,3116.3,0.00630266]
[1642607372725,10.61633176,3116.5,3116.3,0.00630266]
[1642607373130,10.51633176,3116.5,3116.3,0.00630266]
[1642607373371,10.55497824,3116.5,3116.3,0.00630266]
[1642607373676,11.35742824,3116.5,3116.3,0.00630266]
[1642607374272,11.31878176,3116.5,3116.3,0.00630266]
[1642607374672,8.7441635,3116.4,3116.0,1.5760611]
[1642607374876,0.8024614,3116.2,3116.0,1.5760611]
[1642607375073,5.9283,3116.1,3116.0,1.5760611]
[1642607375274,6.2283,3116.1,3116.0,1.5760611]
[1642607375577,7.41265628,3116.1,3116.0,1.57833479]
[1642607375777,7.6550626,3116.0,3115.3,1.1591]
[1642607375977,0.93084,3115.9,3115.4,0.13641465]
[1642607376180,1.23084,3115.9,3115.4,0.13982519]
[1642607376376,1.23084,3115.9,3115.5,0.13641465]
[1642607376575,1.23084,3115.9,3115.4,0.00341054]
[1642607376576,1.32582007,3115.8,3115.4,0.00341054]
[1642607376776,1.32582007,3115.8,3115.6,0.00227369]
[1642607377020,1.32582007,3115.8,3115.4,0.13641423]
[1642607377424,1.32582007,3115.8,3115.5,0.00284212]
[1642607377625,1.32582007,3115.8,3115.5,0.13925635]
[1642607377824,1.32582007,3115.8,3115.5,0.00284212]
[1642607378024,1.32582007,3115.8,3115.6,0.00227369]
[1642607378225,0.80261,3115.7,3115.2,0.14096189]
[1642607378425,0.80261,3115.7,3115.0,3.6128]
[1642607378426,2.19065338,3115.6,3115.3,0.14039347]
[1642607378626,2.19065338,3115.6,3115.4,0.1364145]
[1642607378830,1.38808338,3115.6,3115.4,0.1364145]
[1642607379025,1.38808338,3115.6,3115.5,0.00284212]
[1642607379225,1.38808338,3115.6,3115.5,0.13925662]
[1642607379427,1.38808338,3115.6,3115.5,0.00284212]
[1642607379627,4.73808338,3115.6,3115.5,0.13925662]
[1642607379827,4.73808338,3115.6,3115.5,0.1364145]
[1642607380025,4.73808338,3115.6,3115.5,0.00284212]
[1642607380026,1.38808338,3115.6,3115.5,0.00284212]
[1642607380427,1.38808338,3115.6,3114.9,0.14267574]
[1642607380631,1.38808338,3115.6,3114.8,1.186]
[1642607380632,1.13842927,3115.1,3115.0,0.14210732]
[1642607380875,0.82553755,3115.1,3115.0,0.14210732]
[1642607381074,0.3,3115.1,3115.0,0.14210732]
[1642607381275,1.61083201,3115.3,3115.0,0.14210732]
[1642607381681,1.61083201,3115.3,3115.1,0.00511581]
[1642607381682,4.01892661,3115.3,3115.1,0.00511581]
[1642607381879,4.01892661,3115.3,3115.1,0.14153889]
[1642607381880,5.6783,3115.2,3115.1,0.14153889]
[1642607382075,6.6776,3115.2,3115.1,0.14153889]
[1642607382275,7.96151768,3115.2,3115.1,0.14153889]
[1642607382777,7.83321768,3115.2,3115.1,0.00511581]
[1642607383177,7.83321768,3115.2,3114.5,0.00852635]
[1642607383377,1.51609363,3114.7,3114.5,0.00852635]
[1642607383580,1.81609363,3114.7,3114.5,0.00852635]
[1642607383980,1.60539,3115.8,3114.5,0.00852635]
[1642607383981,0.93094,3115.5,3114.5,0.00852635]
[1642607384178,0.93094,3115.5,3114.6,0.13645345]
[1642607384179,0.80264,3115.5,3114.6,0.13645345]
[1642607384379,2.88582,3115.7,3114.6,0.13645345]
[1642607384380,1.2805,3115.7,3114.6,0.13645345]
[1642607384621,1.2805,3115.7,3114.7,0.00738951]
[1642607384824,0.1283,3116.1,3114.8,0.13645345]
[1642607385024,0.1283,3116.1,3115.3,1.23079476]
[1642607385222,0.13819997,3116.7,3115.5,0.01207207]
[1642607385425,0.94051997,3116.7,3115.6,0.458]
[1642607385629,0.13171054,3116.6,3115.6,0.46027369]
[1642607385820,2.76585338,3116.6,3115.7,0.00170527]
[1642607386022,0.80249,3116.3,3115.7,0.00170527]
[1642607386222,1.16655469,3116.1,3115.7,0.00170527]
[1642607386421,1.16655469,3116.1,3115.5,0.01207207]
[1642607386422,1.16655469,3116.1,3115.6,0.00227369]
[1642607386921,1.46655469,3116.1,3115.6,0.00227369]
[1642607387523,1.31487067,3116.0,3115.6,0.00227369]
[1642607388796,1.31487067,3116.0,3115.0,2.92311799]
[1642607388998,0.00170527,3115.9,3115.4,1.17052404]
[1642607389398,0.00113684,3115.8,3115.5,0.458]
[1642607389598,0.00113684,3115.8,3115.5,1.5994]
[1642607389799,0.13398423,3116.6,3115.5,1.5994]
[1642607390198,2.88909772,3116.5,3115.7,1.11081699]
[1642607390400,0.8023554,3116.4,3115.9,1.36098894]
[1642607390602,0.80690278,3116.4,3115.9,1.36098894]
[1642607390800,0.00397896,3116.3,3115.9,1.36098894]
[1642607391200,0.00341054,3116.2,3115.7,1.11081699]
[1642607391400,0.00341054,3116.2,3115.5,1.5994]
[1642607391599,0.00284211,3116.1,3115.5,1.5994]
[1642607392050,0.00227369,3116.0,3115.5,1.5994]
[1642607392342,0.00170527,3115.9,3115.5,1.5994]
[1642607392538,0.00170527,3115.9,3115.8,1.39479722]
[1642607392738,0.3,3116.4,3115.8,1.39479722]
[1642607393139,0.00397896,3116.3,3115.8,1.39479722]
[1642607393343,0.00397896,3116.3,3115.5,1.5994]
[1642607393545,0.00341054,3116.2,3115.6,2.46020701]
[1642607393743,0.00341054,3116.2,3115.6,0.458]
[1642607393944,0.00284211,3116.1,3115.6,0.458]
[1642607394348,0.00227369,3116.0,3115.6,0.458]
[1642607394746,0.00170527,3115.9,3115.6,0.458]
[1642607395145,0.00113684,3115.8,3115.6,0.458]
[1642607395546,0.00341054,3116.2,3115.6,0.458]
[1642607395781,0.80581714,3116.2,3115.6,0.458]
[1642607395982,1.42127945,3116.0,3115.6,0.458]
[1642607396384,0.00170527,3115.9,3115.6,0.458]
[1642607396785,0.00113684,3115.8,3115.6,0.458]
[1642607398291,0.30113684,3115.8,3115.6,0.458]
[1642607398494,0.00113684,3115.8,3115.6,0.458]
[1642607400132,0.00113684,3115.8,3115.7,2.64152496]
[1642607400333,0.00113684,3115.8,3115.7,6.208]
[1642607400932,0.30113684,3115.8,3115.7,6.208]
[1642607401134,0.00113684,3115.8,3115.7,6.208]
[1642607401733,0.00113684,3115.8,3115.7,0.458]
[1642607404384,0.00113684,3115.8,3115.7,3.008]
[1642607405188,0.00113684,3115.8,3115.7,4.29718888]
[1642607407926,3.684e-05,3115.8,3115.7,4.30961992]
[1642607408129,0.1283,3116.4,3115.8,0.00076316]
[1642607408326,0.1283,3116.4,3116.1,5.723]
[1642607408526,0.1283,3116.4,3116.2,1.91757947]
[1642607408527,0.00284212,3116.3,3116.2,1.91757947]
[1642607408727,0.00284212,3116.3,3116.2,2.29220107]
[1642607409127,0.00284212,3116.3,3116.2,3.67139061]
[1642607409326,0.00284212,3116.3,3116.2,8.22139061]
[1642607410133,7.45,3117.0,3116.3,6.05]
[1642607410330,7.45,3117.0,3116.4,0.8326216]
[1642607410530,0.00341054,3116.9,3116.5,0.3746216]
[1642607410784,0.00341054,3116.9,3116.6,0.8326216]
[1642607410984,7.75,3117.0,3116.3,6.1782]
[1642607410985,0.00284212,3116.8,3116.7,7.33895315]
[1642607411185,0.00284212,3116.8,3116.7,8.77603204]
[1642607411387,7.70284212,3117.0,3116.8,6.05]
[1642607411588,7.70284212,3117.0,3116.9,0.3746216]
[1642607411791,7.70284212,3117.0,3116.9,0.8326216]
[1642607411990,7.70397896,3117.0,3116.9,0.8326216]
[1642607413195,7.70397896,3117.0,3116.9,4.8326216]
[1642607413795,0.00113684,3117.0,3116.9,6.8826216]
[1642607414190,0.00113684,3117.0,3116.9,32.2256216]
[1642607414389,0.00113684,3117.0,3116.9,13.8663739]
[1642607414630,0.00113684,3117.0,3116.9,10.5556216]
[1642607414835,0.00113684,3117.0,3116.9,11.3574616]
[1642607415035,0.00113684,3117.0,3116.9,6.6839216]
[1642607415342,0.00113684,3117.0,3116.9,0.8326216]
[1642607415732,0.00113684,3117.0,3116.0,4.2481]
[1642607415733,0.12943684,3117.0,3116.3,0.458]
[1642607415935,0.00113684,3117.0,3116.3,0.458]
[1642607416135,0.00113684,3117.0,3116.4,0.0022737]
[1642607416333,1.42534819,3116.8,3116.4,0.37568115]
[1642607416734,1.42534819,3116.8,3116.5,0.00170527]
[1642607417332,1.14677564,3117.0,3116.5,0.00170527]
[1642607417532,0.30113684,3117.0,3116.5,0.00170527]
[1642607417734,0.00113684,3117.0,3116.5,0.00170527]
[1642607417938,0.00113684,3117.0,3116.6,0.458]
[1642607418134,0.00113684,3117.0,3116.7,0.37340745]
[1642607418379,0.00113684,3117.0,3116.7,0.83140745]
[1642607418580,0.00113684,3117.0,3116.8,0.37340745]
[1642607420680,0.00113684,3117.0,3116.8,2.84919971]
[1642607420880,0.00113684,3117.0,3116.7,0.458]
[1642607420881,0.00113684,3117.0,3116.9,4.47340745]
[1642607421882,0.00113684,3117.0,3116.9,5.59956447]
[1642607422733,0.00113684,3117.0,3116.9,8.56182723]
[1642607423735,0.00113684,3117.0,3116.9,6.05756447]
[1642607424540,0.00113684,3117.0,3116.9,4.93140745]
[1642607425135,0.00113684,3117.0,3116.9,4.47340745]
[1642607425538,0.00113684,3117.0,3116.9,5.77209565]
[1642607425983,3.684e-05,3117.0,3116.9,9.42921113]
[1642607426182,3.684e-05,3117.0,3116.9,11.37921113]
[1642607426380,0.0036563,3117.4,3117.0,6.05076316]
[1642607426680,0.0036563,3117.4,3117.1,2.3501778]
[1642607426681,0.00170527,3117.3,3117.1,2.3501778]
[1642607426880,0.00170527,3117.3,3117.2,6.55170745]
[1642607427079,0.0036563,3117.4,3117.2,8.00970745]
[1642607427279,0.0036563,3117.4,3117.3,14.75352293]
[1642607427480,0.0036563,3117.4,3117.3,14.54990745]
[1642607427680,0.00593,3117.4,3117.3,13.67070745]
[1642607427881,0.00593,3117.4,3117.3,14.54990745]
[1642607428078,0.00593,3117.4,3117.3,13.54990745]
[1642607428480,0.00593,3117.4,3117.3,13.68270745]
[1642607428881,0.00593,3117.4,3117.3,32.42750745]
[1642607429082,3.02086311,3118.2,3117.4,6.0]
[1642607429282,3.02086311,3118.2,3118.1,5.723]
[1642607429531,3.02086311,3118.2,3118.1,9.23269977]
[1642607429731,3.02086311,3118.2,3118.1,9.96509977]
[1642607429933,3.02086311,3118.2,3118.1,15.11509977]
[1642607429934,0.77753545,3118.2,3118.1,15.11509977]
[1642607430137,8.18,3119.5,3118.2,6.05]
[1642607430438,8.18,3119.5,3118.5,5.723]
[1642607430439,0.01023162,3119.2,3118.5,5.723]
[1642607430636,0.01023162,3119.2,3118.6,0.83140745]
[1642607430839,0.0096632,3119.1,3119.0,4.4693761]
[1642607431034,0.0096632,3119.1,3119.0,3.758]
[1642607431335,0.0096632,3119.1,3119.0,0.458]
[1642607431936,0.0096632,3119.1,3119.0,3.008]
[1642607432136,0.0096632,3119.1,3119.0,0.458]
[1642607432537,0.0096632,3119.1,3118.4,3.6567]
[1642607432538,0.0096632,3119.1,3118.5,0.458]
[1642607432736,0.0096632,3119.1,3118.2,3.0598]
[1642607433392,0.00852635,3118.9,3118.1,0.458]
[1642607433590,0.3,3119.0,3118.2,6.0]
[1642607433788,0.1282,3119.2,3118.2,6.00397896]
[1642607433990,0.4282,3119.3,3118.3,0.46141054]
[1642607434191,0.3,3119.3,3118.3,0.46141054]
[1642607434492,0.00170527,3119.2,3118.4,0.00284212]
[1642607434691,0.00170527,3119.2,3118.5,0.458]
[1642607434892,0.00113685,3119.1,3118.5,0.458]
[1642607435092,0.00113685,3119.1,3118.6,0.00170527]
[1642607435291,0.13161054,3119.5,3118.6,0.00170527]
[1642607435491,1.33690099,3119.0,3118.6,0.00170527]
[1642607436491,0.00341054,3119.5,3118.6,2.61027255]
[1642607436691,0.00341054,3119.5,3118.7,0.458]
[1642607436893,0.00227369,3119.3,3118.7,0.45913685]
[1642607437419,0.00170527,3119.2,3119.0,1.33258785]
[1642607437619,0.00170527,3119.2,3119.1,7.16527514]
[1642607437821,8.74603994,3120.2,3119.1,7.16527514]
[1642607438018,4.33319994,3120.2,3119.1,7.16527514]
[1642607438219,0.00511581,3119.8,3119.1,7.16527514]
[1642607438426,1.47957522,3119.7,3119.1,7.16527514]
[1642607438622,1.48412261,3119.7,3119.1,3.01527514]
[1642607438823,0.00397896,3119.6,3119.1,0.458]
[1642607439222,0.00341054,3119.5,3119.1,0.458]
[1642607439527,0.00284212,3119.4,3119.2,2.66069836]
[1642607439723,0.00284212,3119.4,3119.3,6.458]
[1642607439923,3.9286,3120.2,3119.3,7.88298141]
[1642607440324,0.00625266,3120.0,3119.3,7.88298141]
[1642607440526,0.00625266,3120.0,3119.3,9.31207813]
[1642607440769,1.29204737,3120.1,3119.3,9.31207813]
[1642607440770,0.00568423,3119.9,3119.3,7.88298141]
[1642607441269,0.00511581,3119.8,3119.3,7.88298141]
[1642607441674,0.00454739,3119.7,3119.3,7.88298141]
[1642607441872,0.00454739,3119.7,3119.4,0.1282]
[1642607442072,0.00397896,3119.6,3119.5,4.558]
[1642607442272,0.00397896,3119.6,3119.5,0.458]
[1642607443075,1.53863059,3119.6,3119.5,0.458]
[1642607443273,2.76957975,3119.6,3119.5,0.458]
[1642607443975,1.53863059,3119.6,3119.5,0.458]
[1642607444377,0.00397896,3119.6,3119.5,0.458]
[1642607444828,5.51932729,3120.7,3119.6,2.35]
[1642607445128,0.00284212,3120.1,3119.6,2.35]
[1642607445530,0.0022737,3120.0,3119.6,2.35]
[1642607445929,1.34386438,3119.7,3119.5,0.458]
[1642607446331,0.00170527,3119.9,3119.5,0.458]
[1642607446731,0.00113685,3119.8,3119.5,0.458]
[1642607447132,0.00511581,3120.5,3119.5,0.458]
[1642607447331,1.47747214,3120.0,3119.6,0.1282]
[1642607447732,0.00170527,3119.9,3119.6,0.1282]
[1642607448132,0.00113685,3119.8,3119.6,0.1282]
[1642607448581,0.00170527,3119.9,3119.6,0.1282]
[1642607448980,0.00113685,3119.8,3119.6,0.1282]
[1642607449379,0.00170527,3119.9,3119.6,0.1282]
[1642607449783,0.00113685,3119.8,3119.6,0.1282]
[1642607450179,0.00170527,3119.9,3119.6,0.1282]
[1642607450686,1.47747214,3120.0,3119.6,0.1282]
[1642607450687,0.00113685,3119.8,3119.6,0.1282]
[1642607451082,0.00170527,3119.9,3119.6,0.1282]
[1642607451483,1.28469997,3120.7,3119.7,6.458]
[1642607451484,0.00113685,3119.8,3119.7,6.458]
[1642607452331,0.00113685,3119.8,3119.7,7.85093067]
[1642607453532,0.00113685,3119.8,3119.7,6.458]
[1642607454533,0.00113685,3119.8,3119.7,0.458]
[1642607456071,3.65,3119.7,3119.4,0.458]
[1642607456270,3.65,3119.7,3119.0,0.458]
[1642607456271,0.4282,3119.7,3119.0,0.458]
[1642607456479,0.00113685,3119.8,3119.0,0.458]
[1642607456673,0.00113685,3119.8,3119.1,0.00284211]
[1642607456874,1.09938524,3119.5,3119.1,0.00284211]
[1642607457375,1.52334071,3119.4,3119.1,0.00284211]
[1642607458375,0.00113685,3119.8,3119.1,0.00284211]
[1642607460025,1.27909796,3119.4,3119.1,0.00284211]
[1642607462632,1.43410487,3119.7,3119.1,0.00284211]
[1642607462833,0.00113685,3119.8,3119.2,0.458]
[1642607463274,0.00113685,3119.8,3119.3,0.00170527]
[1642607463871,0.00113685,3119.8,3119.0,0.00341054]
[1642607463872,1.21049509,3119.7,3119.0,0.00341054]
[1642607464072,1.51263075,3119.6,3119.0,0.00341054]
[1642607464276,1.94083075,3119.6,3119.0,0.00341054]
[1642607464572,1.94083075,3119.6,3118.8,0.00454738]
[1642607464871,1.94083075,3119.6,3118.7,0.00511581]
[1642607464872,0.80155,3119.5,3118.7,0.00511581]
[1642607465072,1.38682076,3119.2,3118.7,0.00511581]
[1642607465271,1.27708019,3119.1,3118.7,0.00511581]
[1642607465773,1.57708019,3119.1,3118.7,0.00511581]
[1642607465971,0.3,3119.1,3118.7,0.00511581]
[1642607466171,0.9296263,3119.6,3118.7,0.00511581]
[1642607466377,0.12933685,3119.8,3118.8,0.54806274]
[1642607466578,0.00113685,3119.8,3118.9,0.458]
[1642607466881,0.00113685,3119.8,3119.0,0.55147328]
[1642607467125,1.24331407,3119.8,3119.1,0.458]
[1642607467425,1.24331407,3119.8,3119.2,0.00227369]
[1642607467623,1.24331407,3119.8,3119.3,0.458]
[1642607468025,0.00113685,3119.8,3119.4,0.00113684]
[1642607468225,0.00113685,3119.8,3119.4,0.45913684]
[1642607470027,0.00113685,3119.8,3119.5,0.55599419]
[1642607470227,0.00113685,3119.8,3119.6,0.458]
[1642607470882,0.00113685,3119.8,3119.7,8.05280872]
[1642607471081,0.00113685,3119.8,3119.7,9.90022421]
[1642607471287,0.00113685,3119.8,3119.7,16.42431421]
[1642607471885,7.45,3120.7,3119.8,24.6550204]
[1642607472085,7.45,3120.7,3120.3,1.44708821]
[1642607472283,7.45,3120.7,3120.4,1.1425244]
[1642607472482,7.45,3120.7,3120.5,0.458]
[1642607473686,7.45,3120.7,3119.6,8.5085]
[1642607473687,5.778,3120.6,3119.9,0.458]
[1642607473987,5.778,3120.6,3120.0,0.58419584]
[1642607473988,0.00397896,3120.5,3120.0,0.58419584]
[1642607474184,1.49768413,3120.2,3119.4,0.45913684]
[1642607474384,1.49768413,3120.2,3119.5,0.58437798]
[1642607474635,0.00170527,3120.1,3119.5,0.58608325]
[1642607474827,0.00170527,3120.1,3119.3,0.128]
[1642607474828,0.00170527,3120.1,3119.6,0.58551483]
[1642607475027,1.49768413,3120.2,3119.7,0.58437798]
[1642607475028,0.00113685,3120.0,3119.7,0.58437798]
[1642607475229,0.00113685,3120.0,3119.8,0.58437798]
[1642607475431,0.00170527,3120.1,3119.9,0.58437798]
[1642607475628,0.00170527,3120.1,3119.6,0.45913685]
[1642607475629,0.00170527,3120.1,3120.0,4.58437798]
[1642607475827,1.46016233,3120.6,3120.0,4.58437798]
[1642607476027,1.46016233,3120.6,3120.1,0.58437798]
[1642607476228,0.00397896,3120.5,3120.1,0.58437798]
[1642607476428,0.00397896,3120.5,3120.1,3.21750303]
[1642607476629,0.00341054,3120.4,3120.2,0.58437798]
[1642607477029,0.00284212,3120.3,3120.2,0.58437798]
[1642607477246,0.00284212,3120.3,3120.2,3.36908473]
[1642607477429,0.00284212,3120.3,3120.2,3.33437798]
[1642607478971,0.00284212,3120.3,3120.2,4.88885565]
[1642607479372,0.00284212,3120.3,3120.2,3.46237798]
[1642607480172,0.40439994,3121.1,3120.3,4.55]
[1642607480373,0.40439994,3121.1,3120.4,0.58620175]
[1642607480576,0.00341054,3120.9,3120.5,2.44995058]
[1642607480773,0.00341054,3120.9,3120.6,2.09599892]
[1642607480974,8.83012709,3121.4,3120.7,0.58620175]
[1642607480975,0.00284212,3120.8,3120.7,0.58620175]
[1642607481376,0.00284212,3120.8,3120.7,5.48620175]
[1642607481377,0.00568423,3120.8,3120.7,5.48620175]
[1642607482226,0.00568423,3120.8,3120.7,5.48869735]
[1642607482432,0.00568423,3120.8,3120.7,0.58869735]
[1642607482633,0.00568423,3120.8,3120.5,0.58871234]
[1642607482830,0.00568423,3120.8,3120.0,2.64674618]
[1642607482831,0.00568423,3120.8,3120.0,0.61790703]
[1642607483033,0.00227369,3120.7,3120.1,0.58879874]
[1642607483232,0.00227369,3120.7,3120.1,0.58993559]
[1642607483432,0.00170527,3120.6,3120.1,1.7370832]
[1642607483632,0.00170527,3120.6,3120.2,0.71679874]
[1642607483833,0.00113684,3120.5,3120.3,0.58879874]
[1642607484233,0.00227369,3120.7,3120.3,0.58879874]
[1642607484631,0.00170527,3120.6,3120.3,0.58879874]
[1642607485038,0.00113684,3120.5,3120.3,0.58879874]
[1642607485536,0.80113,3121.2,3120.3,0.58879874]
[1642607485537,0.00511581,3121.2,3120.3,0.58879874]
[1642607485775,0.00511581,3121.2,3120.4,0.128]
[1642607485978,7.65511581,3121.4,3120.5,7.13314659]
[1642607486177,7.65511581,3121.4,3120.6,0.58879874]
[1642607486379,7.65511581,3121.4,3120.6,0.00341054]
[1642607486577,7.65511581,3121.4,3120.7,0.00284212]
[1642607486782,7.65511581,3121.4,3120.6,3.64912567]
[1642607486981,7.65511581,3121.4,3120.7,0.00284212]
[1642607487180,1.40552394,3121.3,3120.7,0.00284212]
[1642607487685,1.40552394,3121.3,3120.6,0.00341054]
[1642607487881,1.53352394,3121.3,3120.6,0.00341054]
[1642607488282,1.16746294,3121.0,3120.5,0.59395095]
[1642607488484,1.46746294,3121.0,3120.6,0.00341054]
[1642607488884,1.46746294,3121.0,3120.5,0.00397897]
[1642607489085,1.16746294,3121.0,3120.6,0.00341054]
[1642607489287,1.16746294,3121.0,3120.4,0.62469489]
[1642607489288,0.3,3121.0,3120.5,0.00397897]
[1642607489521,1.70552394,3121.3,3120.5,0.00397897]
[1642607490625,1.11942114,3121.1,3120.5,0.00397897]
[1642607492027,0.3,3121.3,3120.5,0.00397897]
[1642607492427,7.75,3121.4,3120.7,1.52344302]
[1642607492828,7.75,3121.4,3120.8,0.00227369]
[1642607495078,7.75,3121.4,3120.7,2.56430797]